[Event "Titled Tuesday Blitz July 26 Late 2022"]
[White "Pakleza, Zbigniew"]
[Black "Vasquez Schroeder, Rodrigo"]
[WhiteFideId "1119290"]
[BlackFideId "3400042"]
[WhiteElo "2467"]
[BlackElo "2567"]
[Result "0-1"]
[Round "11"]
[TimeControl "180+1"]
[Date "2022.07.26"]
[WhiteClock "0:00:03"]
[BlackClock "0:00:42"]

1. d4 {[%clk 0:03:00]}  d5 {[%clk 0:02:59]} 2. Bf4 {[%clk 0:03:00]}  c5 {[%clk 0:02:59]} 3. e3 {[%clk 0:03:00]}  cxd4 {[%clk 0:02:59]} 4. exd4 {[%clk 0:03:00]}  Nc6 {[%clk 0:02:59]} 5. c3 {[%clk 0:03:00]}  Bf5 {[%clk 0:02:58]} 6. Qb3 {[%clk 0:02:59]}  Qd7 {[%clk 0:02:58]} 7. Nf3 {[%clk 0:02:58]}  e6 {[%clk 0:02:56]} 8. Bb5 {[%clk 0:02:53]}  f6 {[%clk 0:02:55]} 9. O-O {[%clk 0:02:48]}  g5 {[%clk 0:02:51]} 10. Be3 {[%clk 0:02:41]}  Nge7 {[%clk 0:02:43]} 11. Re1 {[%clk 0:02:33]}  a6 {[%clk 0:02:41]} 12. Bf1 {[%clk 0:02:31]}  Bg7 {[%clk 0:02:40]} 13. Nbd2 {[%clk 0:02:29]}  O-O {[%clk 0:02:39]} 14. c4 {[%clk 0:02:20]}  Na5 {[%clk 0:02:29]} 15. Qa3 {[%clk 0:02:09]}  Nxc4 {[%clk 0:02:28]} 16. Nxc4 {[%clk 0:02:10]}  dxc4 {[%clk 0:02:28]} 17. Bxc4 {[%clk 0:02:11]}  Nd5 {[%clk 0:02:27]} 18. Rac1 {[%clk 0:02:04]}  Rac8 {[%clk 0:02:23]} 19. h3 {[%clk 0:01:56]}  Rfd8 {[%clk 0:02:22]} 20. Bd2 {[%clk 0:01:48]}  Bf8 {[%clk 0:02:17]} 21. Qb3 {[%clk 0:01:46]}  Rc6 {[%clk 0:02:12]} 22. Bxd5 {[%clk 0:01:01]}  Qxd5 {[%clk 0:02:07]} 23. Qxd5 {[%clk 0:00:58]}  Rxd5 {[%clk 0:02:02]} 24. Rxc6 {[%clk 0:00:57]}  bxc6 {[%clk 0:02:02]} 25. Be3 {[%clk 0:00:44]}  Rb5 {[%clk 0:01:55]} 26. b3 {[%clk 0:00:41]}  Be4 {[%clk 0:01:49]} 27. Nd2 {[%clk 0:00:36]}  Bd5 {[%clk 0:01:50]} 28. Rc1 {[%clk 0:00:35]}  h6 {[%clk 0:01:44]} 29. Nc4 {[%clk 0:00:31]}  Kf7 {[%clk 0:01:43]} 30. Bd2 {[%clk 0:00:29]}  Be7 {[%clk 0:01:40]} 31. Ne3 {[%clk 0:00:27]}  Ba3 {[%clk 0:01:35]} 32. Rc2 {[%clk 0:00:21]}  Be4 {[%clk 0:01:34]} 33. Rc4 {[%clk 0:00:22]}  Be7 {[%clk 0:01:22]} 34. f3 {[%clk 0:00:21]}  Bb1 {[%clk 0:01:11]} 35. Ra4 {[%clk 0:00:19]}  c5 {[%clk 0:01:12]} 36. dxc5 {[%clk 0:00:18]}  Bxc5 {[%clk 0:01:12]} 37. Rxa6 {[%clk 0:00:15]}  f5 {[%clk 0:01:12]} 38. Kf1 {[%clk 0:00:14]}  Bd3+ {[%clk 0:01:11]} 39. Ke1 {[%clk 0:00:14]}  Rxb3 {[%clk 0:01:04]} 40. axb3 {[%clk 0:00:15]}  Bxa6 {[%clk 0:01:03]} 41. Nc4 {[%clk 0:00:13]}  Bd4 {[%clk 0:00:58]} 42. Be3 {[%clk 0:00:11]}  Bc3+ {[%clk 0:00:56]} 43. Bd2 {[%clk 0:00:10]}  Bf6 {[%clk 0:00:54]} 44. Bb4 {[%clk 0:00:09]}  e5 {[%clk 0:00:54]} 45. Bc3 {[%clk 0:00:08]}  Ke6 {[%clk 0:00:54]} 46. Kd2 {[%clk 0:00:08]}  Kd5 {[%clk 0:00:53]} 47. Ne3+ {[%clk 0:00:08]}  Ke6 {[%clk 0:00:53]} 48. Nc4 {[%clk 0:00:07]}  Bb5 {[%clk 0:00:52]} 49. Na3 {[%clk 0:00:07]}  Bf1 {[%clk 0:00:51]} 50. g3 {[%clk 0:00:05]}  Bxh3 {[%clk 0:00:51]} 51. b4 {[%clk 0:00:06]}  Bg2 {[%clk 0:00:51]} 52. Ke2 {[%clk 0:00:05]}  Bxf3+ {[%clk 0:00:50]} 53. Kxf3 {[%clk 0:00:05]}  e4+ {[%clk 0:00:51]} 54. Ke2 {[%clk 0:00:05]}  Bxc3 {[%clk 0:00:51]} 55. b5 {[%clk 0:00:06]}  Bd4 {[%clk 0:00:49]} 56. Nc4 {[%clk 0:00:05]}  Kd5 {[%clk 0:00:49]} 57. Na5 {[%clk 0:00:04]}  Bb6 {[%clk 0:00:47]} 58. Nc6 {[%clk 0:00:05]}  f4 {[%clk 0:00:45]} 59. gxf4 {[%clk 0:00:05]}  gxf4 {[%clk 0:00:45]} 60. Ne7+ {[%clk 0:00:06]}  Ke6 {[%clk 0:00:45]} 61. Ng6 {[%clk 0:00:05]}  f3+ {[%clk 0:00:46]} 62. Kf1 {[%clk 0:00:05]}  Kf5 {[%clk 0:00:46]} 63. Ne7+ {[%clk 0:00:04]}  Ke6 {[%clk 0:00:45]} 64. Nc8 {[%clk 0:00:04]}  Bc5 {[%clk 0:00:42]} 65. b6 {[%clk 0:00:04]}  Kd7 {[%clk 0:00:42]} 66. b7 {[%clk 0:00:03]}  Kc7 {[%clk 0:00:42]} 0-1


[Site "https://www.chess.com"]

[Event "Titled Tuesday Blitz July 26 Late 2022"]
[White "Pfreundt, Jakob"]
[Black "Leiva, Gianmarco"]
[WhiteFideId "12918156"]
[BlackFideId "3804399"]
[WhiteElo "2345"]
[BlackElo "2323"]
[Result "1/2-1/2"]
[Round "11"]
[TimeControl "180+1"]
[Date "2022.07.26"]
[WhiteClock "0:00:05"]
[BlackClock "0:00:02"]

1. Nf3 {[%clk 0:03:00]}  Nf6 {[%clk 0:03:00]} 2. d4 {[%clk 0:03:00]}  e6 {[%clk 0:02:57]} 3. c4 {[%clk 0:02:57]}  d5 {[%clk 0:02:56]} 4. Nc3 {[%clk 0:02:56]}  a6 {[%clk 0:02:56]} 5. c5 {[%clk 0:02:48]}  b6 {[%clk 0:02:41]} 6. cxb6 {[%clk 0:02:49]}  c5 {[%clk 0:02:39]} 7. Qa4+ {[%clk 0:02:12]}  Nbd7 {[%clk 0:02:37]} 8. e3 {[%clk 0:01:50]}  Qxb6 {[%clk 0:02:33]} 9. Be2 {[%clk 0:01:48]}  Bd6 {[%clk 0:02:31]} 10. O-O {[%clk 0:01:45]}  O-O {[%clk 0:02:31]} 11. Qd1 {[%clk 0:01:22]}  cxd4 {[%clk 0:02:11]} 12. exd4 {[%clk 0:01:18]}  Ne4 {[%clk 0:02:10]} 13. Nxe4 {[%clk 0:01:07]}  dxe4 {[%clk 0:02:10]} 14. Nd2 {[%clk 0:01:07]}  Qxd4 {[%clk 0:02:04]} 15. Nc4 {[%clk 0:00:58]}  Bc5 {[%clk 0:01:32]} 16. Qxd4 {[%clk 0:00:48]}  Bxd4 {[%clk 0:01:32]} 17. Rd1 {[%clk 0:00:44]}  e5 {[%clk 0:01:18]} 18. Be3 {[%clk 0:00:28]}  Bxe3 {[%clk 0:01:18]} 19. fxe3 {[%clk 0:00:29]}  Nf6 {[%clk 0:01:18]} 20. Nxe5 {[%clk 0:00:28]}  Be6 {[%clk 0:01:15]} 21. Nc6 {[%clk 0:00:18]}  Rfe8 {[%clk 0:01:08]} 22. b3 {[%clk 0:00:16]}  Nd5 {[%clk 0:01:07]} 23. Kf2 {[%clk 0:00:15]}  a5 {[%clk 0:00:41]} 24. Rac1 {[%clk 0:00:16]}  a4 {[%clk 0:00:39]} 25. b4 {[%clk 0:00:16]}  a3 {[%clk 0:00:38]} 26. b5 {[%clk 0:00:16]}  Nb6 {[%clk 0:00:37]} 27. Rc2 {[%clk 0:00:14]}  Na4 {[%clk 0:00:35]} 28. Nd4 {[%clk 0:00:12]}  Bd5 {[%clk 0:00:23]} 29. Nf5 {[%clk 0:00:09]}  Rad8 {[%clk 0:00:15]} 30. Rdc1 {[%clk 0:00:08]}  g6 {[%clk 0:00:14]} 31. Nd4 {[%clk 0:00:07]}  h5 {[%clk 0:00:12]} 32. h4 {[%clk 0:00:06]}  Kg7 {[%clk 0:00:09]} 33. Bc4 {[%clk 0:00:06]}  Bxc4 {[%clk 0:00:09]} 34. Rxc4 {[%clk 0:00:07]}  Nb2 {[%clk 0:00:10]} 35. Rc7 {[%clk 0:00:03]}  Nd3+ {[%clk 0:00:10]} 36. Ke2 {[%clk 0:00:04]}  Nxc1+ {[%clk 0:00:11]} 37. Rxc1 {[%clk 0:00:04]}  Rc8 {[%clk 0:00:09]} 38. Nc6 {[%clk 0:00:04]}  Re5 {[%clk 0:00:08]} 39. Rb1 {[%clk 0:00:03]}  Rxb5 {[%clk 0:00:05]} 40. Rxb5 {[%clk 0:00:03]}  Rxc6 {[%clk 0:00:05]} 41. Kd2 {[%clk 0:00:02]}  Rd6+ {[%clk 0:00:06]} 42. Ke2 {[%clk 0:00:02]}  Rc6 {[%clk 0:00:06]} 43. Kd2 {[%clk 0:00:02]}  Rd6+ {[%clk 0:00:02]} 44. Ke2 {[%clk 0:00:02]}  Rd3 {[%clk 0:00:03]} 45. Ra5 {[%clk 0:00:02]}  Rc3 {[%clk 0:00:02]} 46. Kd2 {[%clk 0:00:03]}  Rd3+ {[%clk 0:00:03]} 47. Ke2 {[%clk 0:00:03]}  f5 {[%clk 0:00:02]} 48. g3 {[%clk 0:00:04]}  Kh6 {[%clk 0:00:01]} 49. Ra7 {[%clk 0:00:03]}  g5 {[%clk 0:00:01]} 50. Ra6+ {[%clk 0:00:03]}  Kg7 {[%clk 0:00:02]} 51. hxg5 {[%clk 0:00:04]}  Rc3 {[%clk 0:00:03]} 52. Kd2 {[%clk 0:00:03]}  Rd3+ {[%clk 0:00:03]} 53. Ke2 {[%clk 0:00:04]}  Rc3 {[%clk 0:00:02]} 54. Kd2 {[%clk 0:00:04]}  Rd3+ {[%clk 0:00:02]} 55. Ke2 {[%clk 0:00:05]} 1/2-1/2


[Site "https://www.chess.com"]

[Event "Titled Tuesday Blitz July 26 Late 2022"]
[White "Pinheiro, Iung Alicio de O."]
[Black "Tanenbaum, Zachary"]
[WhiteFideId "2104350"]
[BlackFideId "2060850"]
[WhiteElo "2283"]
[BlackElo "2175"]
[Result "0-1"]
[Round "11"]
[TimeControl "180+1"]
[Date "2022.07.26"]
[WhiteClock "0:00:04"]
[BlackClock "0:00:05"]

1. e4 {[%clk 0:02:59]}  e5 {[%clk 0:03:00]} 2. Bc4 {[%clk 0:02:59]}  Nf6 {[%clk 0:03:00]} 3. d3 {[%clk 0:02:59]}  Nc6 {[%clk 0:03:01]} 4. Nc3 {[%clk 0:02:59]}  Na5 {[%clk 0:03:01]} 5. Qf3 {[%clk 0:02:59]}  Bc5 {[%clk 0:02:59]} 6. Nge2 {[%clk 0:02:56]}  d6 {[%clk 0:02:57]} 7. h3 {[%clk 0:02:54]}  h6 {[%clk 0:02:53]} 8. a4 {[%clk 0:02:53]}  Nxc4 {[%clk 0:02:53]} 9. dxc4 {[%clk 0:02:54]}  O-O {[%clk 0:02:52]} 10. Ng3 {[%clk 0:02:53]}  Be6 {[%clk 0:02:51]} 11. b3 {[%clk 0:02:52]}  a5 {[%clk 0:02:44]} 12. O-O {[%clk 0:02:52]}  c6 {[%clk 0:02:32]} 13. Rd1 {[%clk 0:02:37]}  Nd7 {[%clk 0:02:26]} 14. Be3 {[%clk 0:02:35]}  Bxe3 {[%clk 0:02:15]} 15. Qxe3 {[%clk 0:02:35]}  Nc5 {[%clk 0:02:15]} 16. Rd2 {[%clk 0:02:33]}  Qe7 {[%clk 0:02:14]} 17. Rad1 {[%clk 0:02:32]}  Rfd8 {[%clk 0:02:04]} 18. f4 {[%clk 0:02:14]}  exf4 {[%clk 0:02:04]} 19. Qxf4 {[%clk 0:02:15]}  Kh7 {[%clk 0:01:27]} 20. Rxd6 {[%clk 0:02:03]}  Rxd6 {[%clk 0:01:24]} 21. Rxd6 {[%clk 0:02:04]}  Rd8 {[%clk 0:01:07]} 22. e5 {[%clk 0:02:03]}  Kg8 {[%clk 0:00:41]} 23. Qd4 {[%clk 0:01:51]}  Nd7 {[%clk 0:00:41]} 24. Nce4 {[%clk 0:01:38]}  Re8 {[%clk 0:00:35]} 25. c5 {[%clk 0:01:17]}  Bd5 {[%clk 0:00:16]} 26. e6 {[%clk 0:00:33]}  fxe6 {[%clk 0:00:13]} 27. Rxd7 {[%clk 0:00:20]}  Qxd7 {[%clk 0:00:11]} 28. Nd6 {[%clk 0:00:16]}  e5 {[%clk 0:00:09]} 29. Qe3 {[%clk 0:00:14]}  Re6 {[%clk 0:00:08]} 30. Ngf5 {[%clk 0:00:14]}  Rf6 {[%clk 0:00:08]} 31. g4 {[%clk 0:00:14]}  Qe6 {[%clk 0:00:07]} 32. c4 {[%clk 0:00:13]}  e4 {[%clk 0:00:05]} 33. cxd5 {[%clk 0:00:12]}  cxd5 {[%clk 0:00:06]} 34. Kg2 {[%clk 0:00:10]}  Qe5 {[%clk 0:00:06]} 35. Qd4 {[%clk 0:00:07]}  Qf4 {[%clk 0:00:04]} 36. Qe3 {[%clk 0:00:06]}  Qe5 {[%clk 0:00:03]} 37. Nd4 {[%clk 0:00:06]}  Rf4 {[%clk 0:00:03]} 38. N6f5 {[%clk 0:00:06]}  g6 {[%clk 0:00:03]} 39. Ng3 {[%clk 0:00:03]}  g5 {[%clk 0:00:03]} 40. Nge2 {[%clk 0:00:03]}  Rf6 {[%clk 0:00:03]} 41. Nf5 {[%clk 0:00:04]}  Rc6 {[%clk 0:00:03]} 42. Qg3 {[%clk 0:00:05]}  Qxg3+ {[%clk 0:00:03]} 43. Kxg3 {[%clk 0:00:05]}  Rxc5 {[%clk 0:00:03]} 44. Ned4 {[%clk 0:00:06]}  Rc3+ {[%clk 0:00:04]} 45. Kg2 {[%clk 0:00:07]}  Rd3 {[%clk 0:00:05]} 46. h4 {[%clk 0:00:06]}  gxh4 {[%clk 0:00:05]} 47. Ne6 {[%clk 0:00:05]}  e3 {[%clk 0:00:05]} 48. Nf4 {[%clk 0:00:03]}  Rd2+ {[%clk 0:00:05]} 49. Kf3 {[%clk 0:00:04]}  d4 {[%clk 0:00:05]} 0-1


[Site "https://www.chess.com"]

[Event "Titled Tuesday Blitz July 26 Late 2022"]
[White "Riehle, Marco"]
[Black "Alexiadis, Hristos"]
[WhiteFideId "12904392"]
[BlackFideId "4249623"]
[WhiteElo "2462"]
[BlackElo "2416"]
[Result "1-0"]
[Round "11"]
[TimeControl "180+1"]
[Date "2022.07.26"]
[WhiteClock "0:00:56"]
[BlackClock "0:00:07"]

1. e4 {[%clk 0:03:00]}  e5 {[%clk 0:02:59]} 2. Nf3 {[%clk 0:02:59]}  Nc6 {[%clk 0:02:59]} 3. Bc4 {[%clk 0:02:59]}  Nf6 {[%clk 0:02:59]} 4. d4 {[%clk 0:02:59]}  exd4 {[%clk 0:02:57]} 5. O-O {[%clk 0:03:00]}  Nxe4 {[%clk 0:02:55]} 6. Nc3 {[%clk 0:02:59]}  Nxc3 {[%clk 0:02:48]} 7. bxc3 {[%clk 0:02:58]}  d5 {[%clk 0:02:47]} 8. Bd3 {[%clk 0:02:56]}  Be7 {[%clk 0:02:46]} 9. Re1 {[%clk 0:02:56]}  O-O {[%clk 0:02:42]} 10. cxd4 {[%clk 0:02:56]}  Bf6 {[%clk 0:02:41]} 11. Bf4 {[%clk 0:02:53]}  Ne7 {[%clk 0:02:39]} 12. Be5 {[%clk 0:02:38]}  Ng6 {[%clk 0:02:35]} 13. h3 {[%clk 0:02:31]}  c6 {[%clk 0:02:33]} 14. c3 {[%clk 0:02:30]}  Bd7 {[%clk 0:02:31]} 15. Qb3 {[%clk 0:02:26]}  b6 {[%clk 0:02:14]} 16. a4 {[%clk 0:02:21]}  Nxe5 {[%clk 0:02:02]} 17. Nxe5 {[%clk 0:02:18]}  Qc7 {[%clk 0:01:46]} 18. a5 {[%clk 0:02:13]}  Be6 {[%clk 0:01:36]} 19. a6 {[%clk 0:02:11]}  c5 {[%clk 0:01:35]} 20. Qd1 {[%clk 0:02:09]}  Rac8 {[%clk 0:01:29]} 21. Ng4 {[%clk 0:02:03]}  Bxg4 {[%clk 0:01:03]} 22. Qxg4 {[%clk 0:02:04]}  g6 {[%clk 0:01:03]} 23. Rad1 {[%clk 0:01:58]}  Kg7 {[%clk 0:00:58]} 24. Re3 {[%clk 0:01:55]}  h5 {[%clk 0:00:55]} 25. Qe2 {[%clk 0:01:49]}  cxd4 {[%clk 0:00:42]} 26. cxd4 {[%clk 0:01:50]}  Qf4 {[%clk 0:00:32]} 27. Rf3 {[%clk 0:01:48]}  Qxd4 {[%clk 0:00:27]} 28. Bxg6 {[%clk 0:01:44]}  Qb2 {[%clk 0:00:24]} 29. Qxb2 {[%clk 0:01:33]}  Bxb2 {[%clk 0:00:25]} 30. Bxh5 {[%clk 0:01:34]}  d4 {[%clk 0:00:25]} 31. Rdd3 {[%clk 0:01:28]}  Rc5 {[%clk 0:00:25]} 32. Bg4 {[%clk 0:01:26]}  f5 {[%clk 0:00:22]} 33. Bh5 {[%clk 0:01:25]}  f4 {[%clk 0:00:18]} 34. Bg4 {[%clk 0:01:22]}  Ra5 {[%clk 0:00:19]} 35. g3 {[%clk 0:01:09]}  Rxa6 {[%clk 0:00:15]} 36. gxf4 {[%clk 0:01:08]}  Ra1+ {[%clk 0:00:12]} 37. Kg2 {[%clk 0:01:08]}  a5 {[%clk 0:00:13]} 38. Rb3 {[%clk 0:01:07]}  Bc1 {[%clk 0:00:11]} 39. Rxb6 {[%clk 0:01:05]}  Rxf4 {[%clk 0:00:11]} 40. Rg3 {[%clk 0:01:00]}  Kf7 {[%clk 0:00:09]} 41. Bh5+ {[%clk 0:00:59]}  Kf8 {[%clk 0:00:07]} 42. Re6 {[%clk 0:00:56]}  Ra2 {[%clk 0:00:07]} 43. Re8# {[%clk 0:00:56]} 1-0


[Site "https://www.chess.com"]

[Event "Titled Tuesday Blitz July 26 Late 2022"]
[White "Rustemov, Alexander"]
[Black "Leitao, Rafael"]
[WhiteFideId "4119002"]
[BlackFideId "2101246"]
[WhiteElo "2804"]
[BlackElo "2609"]
[Result "1/2-1/2"]
[Round "11"]
[TimeControl "180+1"]
[Date "2022.07.26"]
[WhiteClock "0:00:13"]
[BlackClock "0:00:17"]

1. d4 {[%clk 0:02:42]}  Nf6 {[%clk 0:02:55]} 2. c4 {[%clk 0:02:42]}  e6 {[%clk 0:02:51]} 3. Nf3 {[%clk 0:02:42]}  Bb4+ {[%clk 0:02:50]} 4. Bd2 {[%clk 0:02:41]}  c5 {[%clk 0:02:47]} 5. Bxb4 {[%clk 0:02:41]}  cxb4 {[%clk 0:02:47]} 6. g3 {[%clk 0:02:41]}  b6 {[%clk 0:02:48]} 7. Bg2 {[%clk 0:02:42]}  Bb7 {[%clk 0:02:49]} 8. O-O {[%clk 0:02:42]}  O-O {[%clk 0:02:49]} 9. a3 {[%clk 0:02:40]}  Qe7 {[%clk 0:02:44]} 10. Qd3 {[%clk 0:02:36]}  a5 {[%clk 0:02:28]} 11. Nbd2 {[%clk 0:02:34]}  Na6 {[%clk 0:02:27]} 12. e4 {[%clk 0:02:33]}  d6 {[%clk 0:02:26]} 13. Ne1 {[%clk 0:02:29]}  e5 {[%clk 0:02:14]} 14. Nc2 {[%clk 0:02:28]}  bxa3 {[%clk 0:02:10]} 15. bxa3 {[%clk 0:02:26]}  Rab8 {[%clk 0:01:59]} 16. Rab1 {[%clk 0:02:20]}  Qc7 {[%clk 0:01:45]} 17. Rb2 {[%clk 0:02:13]}  Rfe8 {[%clk 0:01:33]} 18. f3 {[%clk 0:02:07]}  Nd7 {[%clk 0:01:26]} 19. Rfb1 {[%clk 0:02:05]}  Rec8 {[%clk 0:01:22]} 20. Bh3 {[%clk 0:02:04]}  exd4 {[%clk 0:01:15]} 21. Qxd4 {[%clk 0:01:58]}  Nac5 {[%clk 0:01:14]} 22. Ne3 {[%clk 0:01:52]}  Rd8 {[%clk 0:01:10]} 23. Bxd7 {[%clk 0:01:49]}  Nxd7 {[%clk 0:01:04]} 24. Kg2 {[%clk 0:01:41]}  f6 {[%clk 0:00:51]} 25. h4 {[%clk 0:01:35]}  Ne5 {[%clk 0:00:47]} 26. Rxb6 {[%clk 0:01:29]}  Bc6 {[%clk 0:00:36]} 27. Nd5 {[%clk 0:01:24]}  Bxd5 {[%clk 0:00:33]} 28. Qxd5+ {[%clk 0:01:22]}  Kf8 {[%clk 0:00:33]} 29. Rb7 {[%clk 0:01:20]}  Rxb7 {[%clk 0:00:30]} 30. Rxb7 {[%clk 0:01:21]}  Qc5 {[%clk 0:00:26]} 31. f4 {[%clk 0:00:56]}  Qxd5 {[%clk 0:00:25]} 32. cxd5 {[%clk 0:00:51]}  Nd3 {[%clk 0:00:25]} 33. Nc4 {[%clk 0:00:43]}  Nc5 {[%clk 0:00:22]} 34. Ra7 {[%clk 0:00:38]}  Nxe4 {[%clk 0:00:20]} 35. Rxa5 {[%clk 0:00:35]}  Rc8 {[%clk 0:00:19]} 36. Ne3 {[%clk 0:00:31]}  g6 {[%clk 0:00:17]} 37. Ra7 {[%clk 0:00:29]}  f5 {[%clk 0:00:17]} 38. Rxh7 {[%clk 0:00:28]}  Rc3 {[%clk 0:00:17]} 39. Kf3 {[%clk 0:00:19]}  Nxg3 {[%clk 0:00:18]} 40. Kxg3 {[%clk 0:00:16]}  Rxe3+ {[%clk 0:00:18]} 41. Kg2 {[%clk 0:00:15]}  Rxa3 {[%clk 0:00:17]} 42. Rd7 {[%clk 0:00:16]}  Ra4 {[%clk 0:00:15]} 43. Kg3 {[%clk 0:00:15]}  Ra3+ {[%clk 0:00:16]} 44. Kg2 {[%clk 0:00:16]}  Ra4 {[%clk 0:00:16]} 45. Rxd6 {[%clk 0:00:14]}  Rxf4 {[%clk 0:00:16]} 46. Rxg6 {[%clk 0:00:12]}  Rxh4 {[%clk 0:00:15]} 47. Rf6+ {[%clk 0:00:12]}  Ke7 {[%clk 0:00:15]} 48. Rxf5 {[%clk 0:00:13]}  Kd6 {[%clk 0:00:16]} 49. Kf3 {[%clk 0:00:13]}  Rd4 {[%clk 0:00:16]} 50. Ke3 {[%clk 0:00:13]}  Rxd5 {[%clk 0:00:17]} 51. Rxd5+ {[%clk 0:00:13]}  Kxd5 {[%clk 0:00:17]} 1/2-1/2


[Site "https://www.chess.com"]

[Event "Titled Tuesday Blitz July 26 Late 2022"]
[White "Sailer, Mike"]
[Black "Musovic, Armin"]
[WhiteFideId "2012901"]
[BlackFideId "939935"]
[WhiteElo "2109"]
[BlackElo "2255"]
[Result "1/2-1/2"]
[Round "11"]
[TimeControl "180+1"]
[Date "2022.07.27"]
[WhiteClock "0:00:02"]
[BlackClock "0:00:13"]

1. d4 {[%clk 0:03:00]}  d5 {[%clk 0:02:59]} 2. Nf3 {[%clk 0:03:00]}  Nf6 {[%clk 0:02:58]} 3. Bf4 {[%clk 0:03:01]}  c5 {[%clk 0:02:59]} 4. e3 {[%clk 0:03:01]}  Nc6 {[%clk 0:02:59]} 5. Nc3 {[%clk 0:03:02]}  a6 {[%clk 0:03:00]} 6. Be2 {[%clk 0:03:01]}  Bg4 {[%clk 0:03:00]} 7. h3 {[%clk 0:03:01]}  Bxf3 {[%clk 0:03:00]} 8. Bxf3 {[%clk 0:03:02]}  cxd4 {[%clk 0:03:00]} 9. exd4 {[%clk 0:03:02]}  e6 {[%clk 0:03:01]} 10. O-O {[%clk 0:03:02]}  Bd6 {[%clk 0:03:01]} 11. Bxd6 {[%clk 0:02:50]}  Qxd6 {[%clk 0:03:02]} 12. Na4 {[%clk 0:02:47]}  O-O {[%clk 0:02:59]} 13. Re1 {[%clk 0:02:44]}  Rad8 {[%clk 0:02:54]} 14. Nc5 {[%clk 0:02:41]}  b6 {[%clk 0:02:38]} 15. Nb7 {[%clk 0:02:36]}  Qb4 {[%clk 0:02:36]} 16. Nxd8 {[%clk 0:02:35]}  Rxd8 {[%clk 0:02:37]} 17. c3 {[%clk 0:02:15]}  Qxb2 {[%clk 0:02:37]} 18. Rb1 {[%clk 0:02:15]}  Qxa2 {[%clk 0:02:28]} 19. Rxb6 {[%clk 0:02:15]}  Na5 {[%clk 0:02:28]} 20. Rxa6 {[%clk 0:02:07]}  g6 {[%clk 0:02:21]} 21. Qa1 {[%clk 0:01:48]}  Qxa1 {[%clk 0:02:19]} 22. Rxa1 {[%clk 0:01:48]}  Nc4 {[%clk 0:02:14]} 23. Ra8 {[%clk 0:01:46]}  Rxa8 {[%clk 0:02:14]} 24. Rxa8+ {[%clk 0:01:46]}  Kg7 {[%clk 0:02:15]} 25. Kf1 {[%clk 0:01:33]}  h5 {[%clk 0:02:05]} 26. Ke2 {[%clk 0:01:30]}  g5 {[%clk 0:02:04]} 27. g3 {[%clk 0:01:24]}  g4 {[%clk 0:02:03]} 28. hxg4 {[%clk 0:01:23]}  hxg4 {[%clk 0:02:03]} 29. Bg2 {[%clk 0:01:21]}  Nh7 {[%clk 0:02:02]} 30. Ra7 {[%clk 0:01:14]}  Kg6 {[%clk 0:01:59]} 31. Ra6 {[%clk 0:01:11]}  Kg7 {[%clk 0:01:56]} 32. Ra7 {[%clk 0:01:07]}  Kg6 {[%clk 0:01:56]} 33. Rb7 {[%clk 0:01:08]}  f5 {[%clk 0:01:53]} 34. Kd3 {[%clk 0:00:57]}  Ng5 {[%clk 0:01:46]} 35. Rb8 {[%clk 0:00:45]}  Kg7 {[%clk 0:01:36]} 36. Rb4 {[%clk 0:00:44]}  Nd6 {[%clk 0:01:31]} 37. Rb6 {[%clk 0:00:36]}  Ngf7 {[%clk 0:01:31]} 38. Kc2 {[%clk 0:00:31]}  Kf6 {[%clk 0:01:19]} 39. Ra6 {[%clk 0:00:31]}  Ke7 {[%clk 0:01:16]} 40. Bf1 {[%clk 0:00:28]}  Ne4 {[%clk 0:01:14]} 41. c4 {[%clk 0:00:20]}  dxc4 {[%clk 0:01:12]} 42. Bxc4 {[%clk 0:00:20]}  Nfd6 {[%clk 0:01:12]} 43. Ra7+ {[%clk 0:00:15]}  Kf6 {[%clk 0:01:12]} 44. Be2 {[%clk 0:00:10]}  Nxf2 {[%clk 0:01:07]} 45. Ra6 {[%clk 0:00:10]}  Ke7 {[%clk 0:01:06]} 46. Ra7+ {[%clk 0:00:10]}  Ke8 {[%clk 0:01:06]} 47. Ra6 {[%clk 0:00:09]}  Ke7 {[%clk 0:01:05]} 48. Bd3 {[%clk 0:00:04]}  Nxd3 {[%clk 0:00:56]} 49. Kxd3 {[%clk 0:00:05]}  Ne4 {[%clk 0:00:57]} 50. Ra7+ {[%clk 0:00:04]}  Ke8 {[%clk 0:00:52]} 51. Ra8+ {[%clk 0:00:03]}  Kf7 {[%clk 0:00:50]} 52. Ra7+ {[%clk 0:00:04]}  Kf6 {[%clk 0:00:40]} 53. Ra6 {[%clk 0:00:04]}  Nxg3 {[%clk 0:00:40]} 54. d5 {[%clk 0:00:05]}  f4 {[%clk 0:00:38]} 55. Rxe6+ {[%clk 0:00:05]}  Kf7 {[%clk 0:00:31]} 56. Re5 {[%clk 0:00:05]}  Kf6 {[%clk 0:00:27]} 57. Re1 {[%clk 0:00:04]}  Nf5 {[%clk 0:00:26]} 58. Ke4 {[%clk 0:00:04]}  f3 {[%clk 0:00:23]} 59. Kf4 {[%clk 0:00:03]}  f2 {[%clk 0:00:19]} 60. Rf1 {[%clk 0:00:04]}  g3 {[%clk 0:00:19]} 61. Kf3 {[%clk 0:00:04]}  Ke5 {[%clk 0:00:18]} 62. Rd1 {[%clk 0:00:04]}  Nd4+ {[%clk 0:00:13]} 63. Kxg3 {[%clk 0:00:05]}  f1=Q {[%clk 0:00:13]} 64. Rxf1 {[%clk 0:00:05]}  Kxd5 {[%clk 0:00:13]} 65. Rd1 {[%clk 0:00:05]}  Ke4 {[%clk 0:00:13]} 66. Kg4 {[%clk 0:00:05]}  Ke3 {[%clk 0:00:13]} 67. Ra1 {[%clk 0:00:05]}  Ke4 {[%clk 0:00:11]} 68. Ra4 {[%clk 0:00:05]}  Ke5 {[%clk 0:00:11]} 69. Ra5+ {[%clk 0:00:06]}  Ke4 {[%clk 0:00:11]} 70. Rc5 {[%clk 0:00:06]}  Ne2 {[%clk 0:00:10]} 71. Rc8 {[%clk 0:00:06]}  Nd4 {[%clk 0:00:10]} 72. Rd8 {[%clk 0:00:05]}  Ke5 {[%clk 0:00:10]} 73. Kg3 {[%clk 0:00:04]}  Ke4 {[%clk 0:00:10]} 74. Kf2 {[%clk 0:00:04]}  Nf5 {[%clk 0:00:10]} 75. Re8+ {[%clk 0:00:04]}  Kf4 {[%clk 0:00:11]} 76. Rf8 {[%clk 0:00:04]}  Ke4 {[%clk 0:00:11]} 77. Ke2 {[%clk 0:00:04]}  Nd4+ {[%clk 0:00:12]} 78. Kd2 {[%clk 0:00:04]}  Nf3+ {[%clk 0:00:12]} 79. Ke2 {[%clk 0:00:05]}  Ne5 {[%clk 0:00:13]} 80. Re8 {[%clk 0:00:05]}  Kf4 {[%clk 0:00:13]} 81. Rxe5 {[%clk 0:00:02]}  Kxe5 {[%clk 0:00:13]} 1/2-1/2


[Site "https://www.chess.com"]